[Event "Titled Tuesday Blitz May 4 2021"]
[White "Melkevik, Johannes"]
[Black "Guzman Moneo, Alberto"]
[WhiteFideId "1501836"]
[BlackFideId "2209616"]
[WhiteElo "1727"]
[BlackElo "2157"]
[Result "1/2-1/2"]
[Round "08"]
[TimeControl "180+1"]
[Date "2021.05.04"]
[WhiteClock "0:00:07"]
[BlackClock "0:00:15"]

1. d4 {[%clk 0:03:00]}  Nf6 {[%clk 0:02:58]} 2. Nf3 {[%clk 0:03:00]}  d5 {[%clk 0:02:57]} 3. g3 {[%clk 0:03:01]}  c5 {[%clk 0:02:54]} 4. Bg2 {[%clk 0:02:56]}  cxd4 {[%clk 0:02:55]} 5. O-O {[%clk 0:02:51]}  g6 {[%clk 0:02:42]} 6. Nxd4 {[%clk 0:02:50]}  Bg7 {[%clk 0:02:42]} 7. Nc3 {[%clk 0:02:36]}  e5 {[%clk 0:02:36]} 8. Ndb5 {[%clk 0:02:31]}  a6 {[%clk 0:02:31]} 9. Na3 {[%clk 0:02:28]}  d4 {[%clk 0:02:19]} 10. Ne4 {[%clk 0:02:25]}  Nxe4 {[%clk 0:02:17]} 11. Bxe4 {[%clk 0:02:23]}  Nc6 {[%clk 0:02:17]} 12. e3 {[%clk 0:02:17]}  Bh3 {[%clk 0:02:16]} 13. Re1 {[%clk 0:02:16]}  O-O {[%clk 0:02:15]} 14. exd4 {[%clk 0:02:00]}  exd4 {[%clk 0:02:07]} 15. Bf4 {[%clk 0:01:51]}  Re8 {[%clk 0:02:00]} 16. Nc4 {[%clk 0:01:46]}  Be6 {[%clk 0:01:45]} 17. Nd6 {[%clk 0:01:40]}  Re7 {[%clk 0:01:45]} 18. Nxb7 {[%clk 0:01:30]}  Qb6 {[%clk 0:01:34]} 19. Nd6 {[%clk 0:01:25]}  Rd8 {[%clk 0:01:28]} 20. Bxc6 {[%clk 0:01:10]}  Qxc6 {[%clk 0:01:15]} 21. Ne4 {[%clk 0:01:09]}  h6 {[%clk 0:01:04]} 22. Qd2 {[%clk 0:01:07]}  g5 {[%clk 0:01:03]} 23. Be3 {[%clk 0:00:48]}  Qxe4 {[%clk 0:00:58]} 24. Bxg5 {[%clk 0:00:46]}  Qf3 {[%clk 0:00:39]} 25. Bxe7 {[%clk 0:00:44]}  Bd5 {[%clk 0:00:39]} 26. Kf1 {[%clk 0:00:40]}  Re8 {[%clk 0:00:34]} 27. Qf4 {[%clk 0:00:28]}  Qg2+ {[%clk 0:00:30]} 28. Ke2 {[%clk 0:00:27]}  Rxe7+ {[%clk 0:00:28]} 29. Kd2 {[%clk 0:00:27]}  Be4 {[%clk 0:00:22]} 30. Rad1 {[%clk 0:00:19]}  f5 {[%clk 0:00:19]} 31. Kc1 {[%clk 0:00:19]}  Be5 {[%clk 0:00:17]} 32. Qxh6 {[%clk 0:00:17]}  Qxf2 {[%clk 0:00:16]} 33. Qg6+ {[%clk 0:00:15]}  Rg7 {[%clk 0:00:16]} 34. Qe8+ {[%clk 0:00:14]}  Kh7 {[%clk 0:00:16]} 35. Qh5+ {[%clk 0:00:11]}  Kg8 {[%clk 0:00:16]} 36. Qe8+ {[%clk 0:00:09]}  Kh7 {[%clk 0:00:16]} 37. Qh5+ {[%clk 0:00:08]}  Kg8 {[%clk 0:00:15]} 38. Qe8+ {[%clk 0:00:07]} 1/2-1/2


[Site "https://www.chess.com"]

[Event "Titled Tuesday Blitz May 4 2021"]
[White "Mikhalevski, Victor"]
[Black "Christensen, Thomas"]
[WhiteFideId "2801914"]
[BlackFideId "1403532"]
[WhiteElo "2567"]
[BlackElo "2321"]
[Result "1-0"]
[Round "08"]
[TimeControl "180+1"]
[Date "2021.05.04"]
[WhiteClock "0:01:17"]
[BlackClock "0:00:06"]

1. d4 {[%clk 0:03:00]}  Nc6 {[%clk 0:02:53]} 2. Nf3 {[%clk 0:02:59]}  d6 {[%clk 0:02:50]} 3. Bf4 {[%clk 0:02:57]}  g6 {[%clk 0:02:50]} 4. e3 {[%clk 0:02:55]}  Bg7 {[%clk 0:02:50]} 5. c3 {[%clk 0:02:56]}  Bd7 {[%clk 0:02:33]} 6. Nbd2 {[%clk 0:02:54]}  e5 {[%clk 0:02:14]} 7. Bg3 {[%clk 0:02:51]}  Nge7 {[%clk 0:02:10]} 8. b4 {[%clk 0:02:48]}  exd4 {[%clk 0:02:06]} 9. exd4 {[%clk 0:02:47]}  O-O {[%clk 0:02:05]} 10. Bh4 {[%clk 0:02:32]}  Qe8 {[%clk 0:02:01]} 11. Be2 {[%clk 0:02:29]}  Nf5 {[%clk 0:01:56]} 12. Bg3 {[%clk 0:02:28]}  Nxg3 {[%clk 0:01:31]} 13. hxg3 {[%clk 0:02:27]}  f5 {[%clk 0:01:32]} 14. O-O {[%clk 0:02:25]}  f4 {[%clk 0:01:24]} 15. Re1 {[%clk 0:02:24]}  Qf7 {[%clk 0:00:47]} 16. Ne4 {[%clk 0:01:51]}  Kh8 {[%clk 0:00:45]} 17. Neg5 {[%clk 0:01:47]}  Qf5 {[%clk 0:00:44]} 18. gxf4 {[%clk 0:01:46]}  Qxf4 {[%clk 0:00:43]} 19. Bc4 {[%clk 0:01:44]}  Bg4 {[%clk 0:00:39]} 20. Ne6 {[%clk 0:01:41]}  Bxe6 {[%clk 0:00:38]} 21. Rxe6 {[%clk 0:01:38]}  Rae8 {[%clk 0:00:34]} 22. Qe2 {[%clk 0:01:37]}  Rxe6 {[%clk 0:00:28]} 23. Qxe6 {[%clk 0:01:32]}  g5 {[%clk 0:00:19]} 24. Bd5 {[%clk 0:01:31]}  g4 {[%clk 0:00:18]} 25. g3 {[%clk 0:01:31]}  Qf6 {[%clk 0:00:14]} 26. Qxf6 {[%clk 0:01:31]}  Rxf6 {[%clk 0:00:14]} 27. Ng5 {[%clk 0:01:30]}  h6 {[%clk 0:00:14]} 28. Ne6 {[%clk 0:01:29]}  Rf7 {[%clk 0:00:10]} 29. Re1 {[%clk 0:01:26]}  Re7 {[%clk 0:00:09]} 30. Re4 {[%clk 0:01:22]}  Bf6 {[%clk 0:00:07]} 31. Rxg4 {[%clk 0:01:19]}  Kh7 {[%clk 0:00:07]} 32. Be4+ {[%clk 0:01:18]}  Kh8 {[%clk 0:00:07]} 33. Bf5 {[%clk 0:01:18]}  Nb8 {[%clk 0:00:05]} 34. Rg6 {[%clk 0:01:17]}  Bg7 {[%clk 0:00:04]} 35. Nxg7 {[%clk 0:01:16]}  Rxg7 {[%clk 0:00:05]} 36. Rxh6+ {[%clk 0:01:17]}  Kg8 {[%clk 0:00:06]} 37. Be6+ {[%clk 0:01:17]} 1-0


[Site "https://www.chess.com"]

[Event "Titled Tuesday Blitz May 4 2021"]
[White "Moore, Nicholas"]
[Black "Markidis, Konstantinos"]
[WhiteFideId "4303709"]
[BlackFideId "4203500"]
[WhiteElo "2365"]
[BlackElo "2304"]
[Result "0-1"]
[Round "08"]
[TimeControl "180+1"]
[Date "2021.05.04"]
[WhiteClock "0:00:06"]
[BlackClock "0:00:29"]

1. d4 {[%clk 0:03:00]}  Nf6 {[%clk 0:02:59]} 2. c4 {[%clk 0:03:00]}  e6 {[%clk 0:02:59]} 3. Nc3 {[%clk 0:02:59]}  Bb4 {[%clk 0:03:00]} 4. e3 {[%clk 0:02:59]}  O-O {[%clk 0:02:59]} 5. Ne2 {[%clk 0:02:59]}  Re8 {[%clk 0:02:58]} 6. a3 {[%clk 0:02:58]}  Bf8 {[%clk 0:02:58]} 7. g3 {[%clk 0:02:56]}  d5 {[%clk 0:02:54]} 8. Bg2 {[%clk 0:02:50]}  c6 {[%clk 0:02:48]} 9. b3 {[%clk 0:02:49]}  Nbd7 {[%clk 0:02:31]} 10. O-O {[%clk 0:02:47]}  g6 {[%clk 0:02:25]} 11. Bb2 {[%clk 0:02:41]}  Bg7 {[%clk 0:02:25]} 12. Qd2 {[%clk 0:02:33]}  h5 {[%clk 0:02:25]} 13. h3 {[%clk 0:02:31]}  Nb6 {[%clk 0:02:20]} 14. a4 {[%clk 0:02:21]}  a5 {[%clk 0:02:14]} 15. c5 {[%clk 0:02:20]}  Nbd7 {[%clk 0:02:14]} 16. f4 {[%clk 0:02:20]}  b6 {[%clk 0:01:59]} 17. cxb6 {[%clk 0:02:17]}  Qxb6 {[%clk 0:01:57]} 18. Ba3 {[%clk 0:02:10]}  c5 {[%clk 0:01:29]} 19. Nb5 {[%clk 0:02:01]}  Bf8 {[%clk 0:01:21]} 20. Rfc1 {[%clk 0:01:58]}  Ba6 {[%clk 0:01:21]} 21. Nec3 {[%clk 0:01:57]}  Rac8 {[%clk 0:01:18]} 22. Qf2 {[%clk 0:01:24]}  cxd4 {[%clk 0:01:15]} 23. exd4 {[%clk 0:01:10]}  Bxa3 {[%clk 0:01:11]} 24. Rxa3 {[%clk 0:01:05]}  Bxb5 {[%clk 0:01:12]} 25. axb5 {[%clk 0:01:04]}  Ne4 {[%clk 0:01:02]} 26. Bxe4 {[%clk 0:01:03]}  dxe4 {[%clk 0:01:02]} 27. Qe3 {[%clk 0:00:51]}  Nf6 {[%clk 0:01:02]} 28. Rd1 {[%clk 0:00:41]}  Nd5 {[%clk 0:01:00]} 29. Nxd5 {[%clk 0:00:40]}  exd5 {[%clk 0:01:00]} 30. Qd2 {[%clk 0:00:36]}  Qxb5 {[%clk 0:00:52]} 31. Rxa5 {[%clk 0:00:31]}  Qxb3 {[%clk 0:00:52]} 32. Ra2 {[%clk 0:00:20]}  Qxg3+ {[%clk 0:00:49]} 33. Qg2 {[%clk 0:00:20]}  Qxf4 {[%clk 0:00:42]} 34. Rf2 {[%clk 0:00:20]}  Qe3 {[%clk 0:00:40]} 35. Kh2 {[%clk 0:00:17]}  Rc1 {[%clk 0:00:32]} 36. Rxc1 {[%clk 0:00:16]}  Qxc1 {[%clk 0:00:32]} 37. Rf6 {[%clk 0:00:14]}  Kg7 {[%clk 0:00:30]} 38. Ra6 {[%clk 0:00:09]}  Qf4+ {[%clk 0:00:29]} 39. Qg3 {[%clk 0:00:08]}  Qxg3+ {[%clk 0:00:29]} 40. Kxg3 {[%clk 0:00:09]}  e3 {[%clk 0:00:30]} 41. Ra1 {[%clk 0:00:10]}  e2 {[%clk 0:00:30]} 42. Re1 {[%clk 0:00:11]}  Re4 {[%clk 0:00:30]} 43. Kf3 {[%clk 0:00:12]}  Kf6 {[%clk 0:00:30]} 44. Kf2 {[%clk 0:00:12]}  Kf5 {[%clk 0:00:30]} 45. Kf3 {[%clk 0:00:12]}  g5 {[%clk 0:00:30]} 46. Kf2 {[%clk 0:00:13]}  Kf4 {[%clk 0:00:31]} 47. Kg2 {[%clk 0:00:11]}  Ke3 {[%clk 0:00:31]} 48. Kg3 {[%clk 0:00:10]}  Kd2 {[%clk 0:00:31]} 49. Kf2 {[%clk 0:00:11]}  Rf4+ {[%clk 0:00:30]} 50. Kg2 {[%clk 0:00:11]}  Kxe1 {[%clk 0:00:31]} 51. h4 {[%clk 0:00:12]}  g4 {[%clk 0:00:30]} 52. Kg3 {[%clk 0:00:09]}  Rf3+ {[%clk 0:00:30]} 53. Kh2 {[%clk 0:00:09]}  Kd2 {[%clk 0:00:29]} 54. Kg2 {[%clk 0:00:07]}  e1=Q {[%clk 0:00:28]} 55. Kh2 {[%clk 0:00:07]}  Qe2+ {[%clk 0:00:29]} 56. Kh1 {[%clk 0:00:06]}  Rf1# {[%clk 0:00:29]} 0-1


[Site "https://www.chess.com"]

[Event "Titled Tuesday Blitz May 4 2021"]
[White "Nastore, Pavel-Alexandru"]
[Black "Roque Sola, Gisela"]
[WhiteFideId "1255002"]
[BlackFideId "5120241"]
[WhiteElo "1809"]
[BlackElo "1863"]
[Result "1-0"]
[Round "08"]
[TimeControl "180+1"]
[Date "2021.05.04"]
[WhiteClock "0:00:14"]
[BlackClock "0:00:01"]

1. c4 {[%clk 0:02:58]}  Nf6 {[%clk 0:02:56]} 2. g3 {[%clk 0:02:57]}  g6 {[%clk 0:02:56]} 3. Bg2 {[%clk 0:02:51]}  Bg7 {[%clk 0:02:57]} 4. Nc3 {[%clk 0:02:51]}  d6 {[%clk 0:02:55]} 5. e3 {[%clk 0:02:38]}  c5 {[%clk 0:02:52]} 6. Nge2 {[%clk 0:02:37]}  O-O {[%clk 0:02:52]} 7. O-O {[%clk 0:02:36]}  Nc6 {[%clk 0:02:49]} 8. d4 {[%clk 0:02:29]}  cxd4 {[%clk 0:02:43]} 9. exd4 {[%clk 0:02:28]}  Bf5 {[%clk 0:02:33]} 10. Be3 {[%clk 0:02:21]}  Rb8 {[%clk 0:02:25]} 11. a3 {[%clk 0:02:06]}  Ng4 {[%clk 0:01:50]} 12. b4 {[%clk 0:01:56]}  Nxe3 {[%clk 0:01:49]} 13. fxe3 {[%clk 0:01:56]}  Qc8 {[%clk 0:01:44]} 14. Rc1 {[%clk 0:01:54]}  Bh3 {[%clk 0:01:42]} 15. Qe1 {[%clk 0:01:47]}  Bxg2 {[%clk 0:01:41]} 16. Kxg2 {[%clk 0:01:46]}  a6 {[%clk 0:01:30]} 17. Qf2 {[%clk 0:01:41]}  e6 {[%clk 0:01:24]} 18. c5 {[%clk 0:01:37]}  dxc5 {[%clk 0:01:23]} 19. bxc5 {[%clk 0:01:33]}  Ne7 {[%clk 0:01:23]} 20. Qf3 {[%clk 0:01:31]}  Nf5 {[%clk 0:01:17]} 21. Rfd1 {[%clk 0:01:27]}  Bh6 {[%clk 0:01:16]} 22. Rd3 {[%clk 0:01:26]}  Qc6 {[%clk 0:01:11]} 23. Qxc6 {[%clk 0:01:25]}  bxc6 {[%clk 0:01:12]} 24. Nf4 {[%clk 0:01:23]}  Rb2+ {[%clk 0:01:11]} 25. Kf3 {[%clk 0:01:22]}  Rxh2 {[%clk 0:01:02]} 26. Rb1 {[%clk 0:01:21]}  Bxf4 {[%clk 0:00:59]} 27. gxf4 {[%clk 0:01:20]}  Rh3+ {[%clk 0:00:57]} 28. Kf2 {[%clk 0:01:19]}  h5 {[%clk 0:00:55]} 29. Rb6 {[%clk 0:01:17]}  h4 {[%clk 0:00:52]} 30. Rxc6 {[%clk 0:01:16]}  Rh2+ {[%clk 0:00:52]} 31. Kf3 {[%clk 0:01:13]}  Rh3+ {[%clk 0:00:47]} 32. Kf2 {[%clk 0:01:12]}  Rb8 {[%clk 0:00:45]} 33. Rb6 {[%clk 0:01:11]}  Rc8 {[%clk 0:00:26]} 34. Rxa6 {[%clk 0:01:07]}  Rh2+ {[%clk 0:00:26]} 35. Kg1 {[%clk 0:01:06]}  Rc2 {[%clk 0:00:22]} 36. Ne4 {[%clk 0:01:06]}  h3 {[%clk 0:00:20]} 37. Rd2 {[%clk 0:01:00]}  Rc1+ {[%clk 0:00:20]} 38. Kh2 {[%clk 0:00:59]}  Nxe3 {[%clk 0:00:20]} 39. Kxh3 {[%clk 0:00:59]}  Rh1+ {[%clk 0:00:19]} 40. Kg3 {[%clk 0:00:59]}  Kg7 {[%clk 0:00:18]} 41. Rb2 {[%clk 0:00:39]}  Rch8 {[%clk 0:00:17]} 42. Ng5 {[%clk 0:00:37]}  Nf5+ {[%clk 0:00:15]} 43. Kf3 {[%clk 0:00:36]}  Rf1+ {[%clk 0:00:15]} 44. Ke2 {[%clk 0:00:34]}  Rfh1 {[%clk 0:00:12]} 45. Rb7 {[%clk 0:00:32]}  R1h2+ {[%clk 0:00:09]} 46. Kd3 {[%clk 0:00:29]}  Nh6 {[%clk 0:00:01]} 47. Nxe6+ {[%clk 0:00:27]}  Kf6 {[%clk 0:00:01]} 48. Nd8+ {[%clk 0:00:16]}  Kf5 {[%clk 0:00:01]} 49. Nxf7 {[%clk 0:00:16]}  Kxf4 {[%clk 0:00:01]} 50. Rxg6 {[%clk 0:00:14]} 1-0


[Site "https://www.chess.com"]

[Event "Titled Tuesday Blitz May 4 2021"]
[White "Nazaretyan, Tigran"]
[Black "Pein, Jonathan"]
[WhiteFideId "24162345"]
[BlackFideId "417092"]
[WhiteElo "2276"]
[BlackElo "2167"]
[Result "1-0"]
[Round "08"]
[TimeControl "180+1"]
[Date "2021.05.04"]
[WhiteClock "0:01:10"]
[BlackClock "0:00:41"]

1. d4 {[%clk 0:03:00]}  d5 {[%clk 0:02:57]} 2. c4 {[%clk 0:03:00]}  Nc6 {[%clk 0:02:57]} 3. cxd5 {[%clk 0:02:57]}  Qxd5 {[%clk 0:02:56]} 4. e3 {[%clk 0:02:57]}  e5 {[%clk 0:02:56]} 5. Nc3 {[%clk 0:02:57]}  Bb4 {[%clk 0:02:54]} 6. a3 {[%clk 0:02:54]}  Bxc3+ {[%clk 0:02:52]} 7. bxc3 {[%clk 0:02:55]}  Nf6 {[%clk 0:02:50]} 8. c4 {[%clk 0:02:55]}  Qd6 {[%clk 0:02:46]} 9. d5 {[%clk 0:02:55]}  Ne7 {[%clk 0:02:46]} 10. a4 {[%clk 0:02:54]}  b6 {[%clk 0:02:34]} 11. Ba3 {[%clk 0:02:54]}  Qd8 {[%clk 0:02:29]} 12. Ne2 {[%clk 0:02:50]}  O-O {[%clk 0:02:28]} 13. Nc3 {[%clk 0:02:49]}  Bf5 {[%clk 0:02:21]} 14. Bd3 {[%clk 0:02:47]}  Bg6 {[%clk 0:02:17]} 15. O-O {[%clk 0:02:43]}  Re8 {[%clk 0:02:13]} 16. e4 {[%clk 0:02:33]}  Nh5 {[%clk 0:02:08]} 17. g3 {[%clk 0:02:31]}  Nc8 {[%clk 0:02:03]} 18. c5 {[%clk 0:02:29]}  bxc5 {[%clk 0:01:42]} 19. Bb5 {[%clk 0:02:28]}  Nd6 {[%clk 0:01:42]} 20. Bxe8 {[%clk 0:02:27]}  Qxe8 {[%clk 0:01:43]} 21. Bxc5 {[%clk 0:02:26]}  Qd7 {[%clk 0:01:41]} 22. f3 {[%clk 0:02:19]}  Nf6 {[%clk 0:01:25]} 23. Qe2 {[%clk 0:02:15]}  h5 {[%clk 0:01:24]} 24. h4 {[%clk 0:01:58]}  Nfe8 {[%clk 0:01:21]} 25. Kh2 {[%clk 0:01:56]}  f6 {[%clk 0:01:20]} 26. Rab1 {[%clk 0:01:55]}  Bf7 {[%clk 0:01:19]} 27. Nb5 {[%clk 0:01:54]}  f5 {[%clk 0:01:13]} 28. Bxd6 {[%clk 0:01:52]}  cxd6 {[%clk 0:01:11]} 29. Rfc1 {[%clk 0:01:47]}  a6 {[%clk 0:01:11]} 30. Nc3 {[%clk 0:01:46]}  f4 {[%clk 0:01:11]} 31. gxf4 {[%clk 0:01:42]}  Qe7 {[%clk 0:01:08]} 32. Qf2 {[%clk 0:01:37]}  exf4 {[%clk 0:01:08]} 33. Ne2 {[%clk 0:01:37]}  Nf6 {[%clk 0:00:59]} 34. Nxf4 {[%clk 0:01:31]}  Nd7 {[%clk 0:01:00]} 35. Rc7 {[%clk 0:01:27]}  Qe5 {[%clk 0:00:54]} 36. Qg3 {[%clk 0:01:27]}  Nf6 {[%clk 0:00:49]} 37. Ne6 {[%clk 0:01:18]}  Qxg3+ {[%clk 0:00:41]} 38. Kxg3 {[%clk 0:01:17]}  Bxe6 {[%clk 0:00:42]} 39. dxe6 {[%clk 0:01:18]}  Re8 {[%clk 0:00:42]} 40. e7 {[%clk 0:01:11]}  d5 {[%clk 0:00:41]} 41. e5 {[%clk 0:01:10]} 1-0


[Site "https://www.chess.com"]

[Event "Titled Tuesday Blitz May 4 2021"]
[White "Niyazgulova, Marina"]
[Black "Spata, German"]
[WhiteFideId "24142573"]
[BlackFideId "113026"]
[WhiteElo "2087"]
[BlackElo "2238"]
[Result "0-1"]
[Round "08"]
[TimeControl "180+1"]
[Date "2021.05.04"]
[WhiteClock "0:00:06"]
[BlackClock "0:00:28"]

1. d4 {[%clk 0:03:00]}  d5 {[%clk 0:02:58]} 2. Nf3 {[%clk 0:03:00]}  Nf6 {[%clk 0:02:57]} 3. c4 {[%clk 0:03:00]}  c6 {[%clk 0:02:53]} 4. Nc3 {[%clk 0:03:00]}  e6 {[%clk 0:02:48]} 5. cxd5 {[%clk 0:03:00]}  exd5 {[%clk 0:02:46]} 6. Bg5 {[%clk 0:03:00]}  Be7 {[%clk 0:02:46]} 7. Qc2 {[%clk 0:02:59]}  g6 {[%clk 0:02:45]} 8. e3 {[%clk 0:02:58]}  Bf5 {[%clk 0:02:45]} 9. Bd3 {[%clk 0:02:59]}  Bxd3 {[%clk 0:02:45]} 10. Qxd3 {[%clk 0:02:59]}  O-O {[%clk 0:02:46]} 11. O-O {[%clk 0:02:58]}  Nbd7 {[%clk 0:02:47]} 12. Rab1 {[%clk 0:02:57]}  a5 {[%clk 0:02:45]} 13. Ne5 {[%clk 0:02:53]}  Nxe5 {[%clk 0:02:43]} 14. dxe5 {[%clk 0:02:53]}  Nd7 {[%clk 0:02:39]} 15. Bxe7 {[%clk 0:02:52]}  Qxe7 {[%clk 0:02:40]} 16. f4 {[%clk 0:02:52]}  f6 {[%clk 0:02:41]} 17. exf6 {[%clk 0:02:41]}  Nxf6 {[%clk 0:02:41]} 18. Rbe1 {[%clk 0:02:34]}  Rae8 {[%clk 0:02:38]} 19. f5 {[%clk 0:02:15]}  g5 {[%clk 0:02:32]} 20. Ne2 {[%clk 0:02:03]}  Qxe3+ {[%clk 0:02:27]} 21. Qxe3 {[%clk 0:02:03]}  Rxe3 {[%clk 0:02:28]} 22. Nd4 {[%clk 0:02:03]}  Rfe8 {[%clk 0:02:20]} 23. Ne6 {[%clk 0:01:55]}  Rxe1 {[%clk 0:02:19]} 24. Rxe1 {[%clk 0:01:54]}  h6 {[%clk 0:02:19]} 25. Kf2 {[%clk 0:01:48]}  Kf7 {[%clk 0:02:07]} 26. Kf3 {[%clk 0:01:44]}  g4+ {[%clk 0:02:04]} 27. Kf4 {[%clk 0:01:42]}  Ne4 {[%clk 0:01:37]} 28. Kxg4 {[%clk 0:01:32]}  Rg8+ {[%clk 0:01:34]} 29. Kf3 {[%clk 0:01:30]}  h5 {[%clk 0:01:32]} 30. Nf4 {[%clk 0:01:17]}  Rg5 {[%clk 0:01:26]} 31. a3 {[%clk 0:00:32]}  Rxf5 {[%clk 0:01:16]} 32. b4 {[%clk 0:00:32]}  Nd2+ {[%clk 0:01:10]} 33. Kg3 {[%clk 0:00:29]}  Ne4+ {[%clk 0:01:09]} 34. Kf3 {[%clk 0:00:28]}  axb4 {[%clk 0:01:03]} 35. axb4 {[%clk 0:00:28]}  Nd2+ {[%clk 0:01:03]} 36. Kg3 {[%clk 0:00:28]}  Nc4 {[%clk 0:00:57]} 37. Nd3 {[%clk 0:00:20]}  Kf6 {[%clk 0:00:51]} 38. Nc5 {[%clk 0:00:19]}  Rg5+ {[%clk 0:00:42]} 39. Kf3 {[%clk 0:00:19]}  Ne5+ {[%clk 0:00:40]} 40. Kf2 {[%clk 0:00:18]}  b6 {[%clk 0:00:38]} 41. Rxe5 {[%clk 0:00:13]}  Kxe5 {[%clk 0:00:36]} 42. Nd7+ {[%clk 0:00:13]}  Kd6 {[%clk 0:00:35]} 43. Nxb6 {[%clk 0:00:13]}  Rg4 {[%clk 0:00:35]} 44. Nc8+ {[%clk 0:00:10]}  Kc7 {[%clk 0:00:33]} 45. Ne7 {[%clk 0:00:10]}  Rxb4 {[%clk 0:00:32]} 46. h3 {[%clk 0:00:10]}  h4 {[%clk 0:00:31]} 47. g4 {[%clk 0:00:08]}  hxg3+ {[%clk 0:00:30]} 48. Kxg3 {[%clk 0:00:08]}  Kd6 {[%clk 0:00:30]} 49. Nf5+ {[%clk 0:00:08]}  Ke5 {[%clk 0:00:30]} 50. Ne7 {[%clk 0:00:08]}  Kd6 {[%clk 0:00:28]} 51. Nf5+ {[%clk 0:00:08]}  Ke6 {[%clk 0:00:27]} 52. Ne3 {[%clk 0:00:07]}  Rb3 {[%clk 0:00:27]} 53. Kf4 {[%clk 0:00:08]}  Rxe3 {[%clk 0:00:27]} 54. Kxe3 {[%clk 0:00:08]}  Kf5 {[%clk 0:00:28]} 55. Kd4 {[%clk 0:00:06]}  Kg5 {[%clk 0:00:28]} 56. Kc5 {[%clk 0:00:06]}  Kh4 {[%clk 0:00:28]} 0-1


[Site "https://www.chess.com"]

[Event "Titled Tuesday Blitz May 4 2021"]
[White "Ognean, Mihnea-Ionut"]
[Black "Josse, Mark"]
[WhiteFideId "1232347"]
[BlackFideId "414476"]
[WhiteElo "2012"]
[BlackElo "2280"]
[Result "1-0"]
[Round "08"]
[TimeControl "180+1"]
[Date "2021.05.04"]
[WhiteClock "0:01:43"]
[BlackClock "0:00:46"]

1. e4 {[%clk 0:03:00]}  e5 {[%clk 0:02:57]} 2. Nf3 {[%clk 0:03:00]}  Nc6 {[%clk 0:02:56]} 3. Bc4 {[%clk 0:03:01]}  Bc5 {[%clk 0:02:55]} 4. c3 {[%clk 0:03:01]}  Nf6 {[%clk 0:02:54]} 5. d3 {[%clk 0:03:01]}  d6 {[%clk 0:02:53]} 6. O-O {[%clk 0:02:59]}  O-O {[%clk 0:02:52]} 7. Nbd2 {[%clk 0:02:59]}  Ne7 {[%clk 0:02:45]} 8. d4 {[%clk 0:02:57]}  exd4 {[%clk 0:02:45]} 9. cxd4 {[%clk 0:02:58]}  Bb6 {[%clk 0:02:45]} 10. e5 {[%clk 0:02:51]}  dxe5 {[%clk 0:02:35]} 11. dxe5 {[%clk 0:02:52]}  Nfd5 {[%clk 0:02:32]} 12. Ne4 {[%clk 0:02:52]}  Be6 {[%clk 0:02:22]} 13. Qe2 {[%clk 0:02:42]}  c6 {[%clk 0:01:41]} 14. Bg5 {[%clk 0:02:26]}  Qc7 {[%clk 0:01:39]} 15. Rad1 {[%clk 0:02:25]}  h6 {[%clk 0:01:29]} 16. Bc1 {[%clk 0:02:24]}  Rfe8 {[%clk 0:01:21]} 17. Nd6 {[%clk 0:02:20]}  Rf8 {[%clk 0:01:20]} 18. Qe4 {[%clk 0:02:14]}  Bc5 {[%clk 0:01:16]} 19. Bd3 {[%clk 0:02:08]}  g6 {[%clk 0:01:12]} 20. Bxh6 {[%clk 0:02:06]}  Bxd6 {[%clk 0:01:09]} 21. exd6 {[%clk 0:02:05]}  Qxd6 {[%clk 0:01:10]} 22. Bxf8 {[%clk 0:02:02]}  Rxf8 {[%clk 0:01:10]} 23. Qh4 {[%clk 0:01:59]}  Nf5 {[%clk 0:01:04]} 24. Bxf5 {[%clk 0:01:57]}  Bxf5 {[%clk 0:01:03]} 25. Ng5 {[%clk 0:01:56]}  Kg7 {[%clk 0:00:52]} 26. Rfe1 {[%clk 0:01:43]}  Rh8 {[%clk 0:00:49]} 27. Qxh8+ {[%clk 0:01:42]}  Kxh8 {[%clk 0:00:46]} 28. Nxf7+ {[%clk 0:01:43]} 1-0


[Site "https://www.chess.com"]

[Event "Titled Tuesday Blitz May 4 2021"]
[White "Omariev, Maksim"]
[Black "Injac, Teodora"]
[WhiteFideId "4193423"]
[BlackFideId "932400"]
[WhiteElo "2426"]
[BlackElo "2308"]
[Result "1-0"]
[Round "08"]
[TimeControl "180+1"]
[Date "2021.05.04"]
[WhiteClock "0:00:11"]
[BlackClock "0:00:06"]

1. g4 {[%clk 0:03:00]}  d5 {[%clk 0:02:57]} 2. Bg2 {[%clk 0:03:01]}  c6 {[%clk 0:02:41]} 3. g5 {[%clk 0:03:00]}  e5 {[%clk 0:02:40]} 4. d4 {[%clk 0:03:00]}  e4 {[%clk 0:02:38]} 5. c4 {[%clk 0:03:00]}  h6 {[%clk 0:02:27]} 6. h4 {[%clk 0:02:54]}  hxg5 {[%clk 0:02:25]} 7. hxg5 {[%clk 0:02:55]}  Rxh1 {[%clk 0:02:25]} 8. Bxh1 {[%clk 0:02:56]}  Be7 {[%clk 0:02:24]} 9. f4 {[%clk 0:02:56]}  exf3 {[%clk 0:02:08]} 10. Nxf3 {[%clk 0:02:57]}  Bg4 {[%clk 0:01:56]} 11. Qb3 {[%clk 0:02:50]}  Bxf3 {[%clk 0:01:31]} 12. Bxf3 {[%clk 0:02:49]}  Qc7 {[%clk 0:01:19]} 13. cxd5 {[%clk 0:02:41]}  Nd7 {[%clk 0:00:51]} 14. Nc3 {[%clk 0:02:37]}  Nb6 {[%clk 0:00:47]} 15. dxc6 {[%clk 0:02:35]}  bxc6 {[%clk 0:00:46]} 16. Be3 {[%clk 0:02:35]}  Qg3+ {[%clk 0:00:33]} 17. Bf2 {[%clk 0:02:35]}  Qc7 {[%clk 0:00:33]} 18. g6 {[%clk 0:02:33]}  O-O-O {[%clk 0:00:24]} 19. gxf7 {[%clk 0:02:31]}  Nh6 {[%clk 0:00:24]} 20. O-O-O {[%clk 0:02:32]}  Bg5+ {[%clk 0:00:20]} 21. Kb1 {[%clk 0:02:32]}  Nxf7 {[%clk 0:00:20]} 22. Rg1 {[%clk 0:02:18]}  Bf6 {[%clk 0:00:19]} 23. Bg3 {[%clk 0:02:12]}  Qd7 {[%clk 0:00:16]} 24. Bxc6 {[%clk 0:01:44]}  Qxc6 {[%clk 0:00:15]} 25. Qxf7 {[%clk 0:01:45]}  Bxd4 {[%clk 0:00:12]} 26. Rc1 {[%clk 0:01:45]}  Nc4 {[%clk 0:00:05]} 27. Qf5+ {[%clk 0:01:17]}  Kb7 {[%clk 0:00:04]} 28. Qb5+ {[%clk 0:00:57]}  Qxb5 {[%clk 0:00:04]} 29. Nxb5 {[%clk 0:00:58]}  Nd2+ {[%clk 0:00:03]} 30. Ka1 {[%clk 0:00:49]}  Be3 {[%clk 0:00:03]} 31. Rc7+ {[%clk 0:00:27]}  Ka6 {[%clk 0:00:03]} 32. a4 {[%clk 0:00:21]}  Rf8 {[%clk 0:00:02]} 33. Rxg7 {[%clk 0:00:14]}  Rf1+ {[%clk 0:00:02]} 34. Ka2 {[%clk 0:00:15]}  Ka5 {[%clk 0:00:03]} 35. Nc3 {[%clk 0:00:08]}  Ka6 {[%clk 0:00:02]} 36. Rg6+ {[%clk 0:00:07]}  Kb7 {[%clk 0:00:02]} 37. Re6 {[%clk 0:00:07]}  Bc5 {[%clk 0:00:01]} 38. Re5 {[%clk 0:00:05]}  Bd6 {[%clk 0:00:01]} 39. Rb5+ {[%clk 0:00:05]}  Kc6 {[%clk 0:00:02]} 40. Bxd6 {[%clk 0:00:06]}  Kxd6 {[%clk 0:00:02]} 41. Rd5+ {[%clk 0:00:06]}  Kc6 {[%clk 0:00:02]} 42. Rxd2 {[%clk 0:00:07]}  Rf5 {[%clk 0:00:02]} 43. e4 {[%clk 0:00:07]}  a5 {[%clk 0:00:03]} 44. exf5 {[%clk 0:00:08]}  Kc5 {[%clk 0:00:03]} 45. f6 {[%clk 0:00:08]}  Kc4 {[%clk 0:00:04]} 46. f7 {[%clk 0:00:09]}  Kc5 {[%clk 0:00:04]} 47. f8=Q+ {[%clk 0:00:09]}  Kc4 {[%clk 0:00:05]} 48. Qf4+ {[%clk 0:00:09]}  Kc5 {[%clk 0:00:06]} 49. Rd5+ {[%clk 0:00:10]}  Kc6 {[%clk 0:00:04]} 50. Qf6+ {[%clk 0:00:10]}  Kb7 {[%clk 0:00:05]} 51. Rd7+ {[%clk 0:00:10]}  Kc8 {[%clk 0:00:06]} 52. Qd8# {[%clk 0:00:11]} 1-0


[Site "https://www.chess.com"]